Cogmind - Beta 12 @@@ ROGUE MODE // 2023.06.07 @ 22:17:55 Player: LustLizard Result: Self-destructed Performance ------------- Evolutions (3) 1500 Regions Visited (7) 1400 Robots Destroyed (72) 360 Value Destroyed (2319) 2319 Prototype IDs (4) 80 Alien Tech Used (0) 0 Bonus (519) 519 TOTAL SCORE: 6178 Bonus ------- High Alert Combat Kills 19 Entered DSFs 500 Cogmind --------- Core Integrity 598/700 Matter 18/300 Energy 100/100 System Corruption 0% Temperature Cool (0) Movement Treading (225) Ox1 Location -7/DSF Parts ------- > --- POWER (1) -------- (None) > --- PROPULSION (3) --- Advanced Treads > --- UTILITY (7) ------ Large Storage Unit Improved Signal Interpreter Improved Terrain Scan Processor > --- WEAPON (2) ------- Improved Assault Rifle Improved Assault Rifle > --- INVENTORY (15) --- Light Nuclear Core Flexi-carbon Leg Wheel Improved Heat Sink High-capacity Matter Pod (200) Weapon Mount Weapon Mount Hardened Medium Armor Plating Authchip [Weapon] Heavy Machine Gun Axe Spear Peak State ------------ > --- POWER ------------ Cooled Ion Engine > --- PROPULSION ------- Advanced Treads Advanced Treads Advanced Treads > --- UTILITY ---------- Large Storage Unit Improved Signal Interpreter Improved Terrain Scanner Improved Terrain Scan Processor Hardened Medium Armor Plating > --- WEAPON ----------- Heavy Machine Gun Heavy Machine Gun > --- INVENTORY -------- Light Nuclear Core Flexi-carbon Leg Wheel Improved Heat Sink High-capacity Matter Pod Weapon Mount Hardened Medium Armor Plating Authchip [Weapon] Improved Assault Rifle Improved Assault Rifle Rocket Launcher Axe Spear [Rating: 39] Favorites ----------- Power Cooled Ion Engine Engine Cooled Ion Engine Propulsion Improved Treads Treads Improved Treads Leg Carbon-fiber Leg Wheel Wheel Utility Large Storage Unit Device Sensor Array Storage Large Storage Unit Processor Signal Interpreter Protection Core Shielding Weapon Improved Light Cannon Energy Gun Medium Laser Ballistic Gun Heavy Assault Rifle Ballistic Cannon Improved Light Cannon Launcher Rocket Launcher Build | -11 -10 -10 -9 -9 -8 -7 -7 ------- Run | Jun Mat Min Mat Sto Mat Fac DSF Slots Evolved 6 | . . . 2 . 2 2 . Power . | . . . . . . . . Propulsion 1 | . . . 1 . . . . Utility 5 | . . . 1 . 2 2 . Weapon . | . . . . . . . . Parts Attached 64 | 6 13 5 8 11 8 2 11 Power 8 | 1 4 1 . 1 . . 1 Engine 8 | 1 4 1 . 1 . . 1 Core . | . . . . . . . . Reactor . | . . . . . . . . Propulsion 22 | 2 5 2 6 3 2 . 2 Treads 11 | 1 2 1 . 3 2 . 2 Leg 6 | . . . 6 . . . . Wheel 5 | 1 3 1 . . . . . Hover . | . . . . . . . . Flight . | . . . . . . . . Utility 16 | 1 3 . 1 1 6 2 2 Device 3 | . . . . . 2 1 . Storage 2 | 1 1 . . . . . . Processor 4 | . . . 1 . 2 1 . Hackware . | . . . . . . . . Protection 7 | . 2 . . 1 2 . 2 Artifact . | . . . . . . . . Weapon 18 | 2 1 2 1 6 . . 6 Energy Gun 2 | . 1 1 . . . . . Energy Cannon . | . . . . . . . . Ballistic Gun 13 | 2 . 1 1 4 . . 5 Ballistic Cannon 2 | . . . . 2 . . . Launcher 1 | . . . . . . . 1 Special Weapon . | . . . . . . . . Impact Weapon . | . . . . . . . . Slashing Weapon . | . . . . . . . . Piercing Weapon . | . . . . . . . . Special Melee Weapon . | . . . . . . . . Unidentified Prototypes 2 | . . . . 2 . . . Parts Lost 21 | . 1 5 . . 1 . 14 Power 3 | . . 1 . . . . 2 Propulsion 6 | . . 2 . . . . 4 Utility 6 | . . . . . 1 . 5 Weapon 6 | . 1 2 . . . . 3 Highest Loss Streak 7 | . 1 3 . . 1 . 7 To Critical Strikes 5 | . 1 . . . . . 4 Average Slot Usage (%) 95 | . 99 91 99 100 89 92 83 Engine 10 | . 14 14 11 11 9 7 6 Treads 18 | . 15 9 . 21 27 23 21 Leg 6 | . . . 32 11 . . . Wheel 3 | . 12 13 . . . . . Device 3 | . . . . . 8 15 8 Storage 11 | . 15 14 11 11 9 7 7 Processor 7 | . . . 11 11 9 15 15 Protection 10 | . 12 14 11 11 9 7 7 Energy Gun 4 | . 7 14 11 2 . . . Ballistic Gun 11 | . 20 10 11 19 . . 7 Ballistic Cannon 5 | . . . . . 18 15 7 Naked Turns . | . . . . . . . . Heaviest Build 58 | 12 32 31 31 43 58 53 54 Greatest Support 69 | 10 40 10 45 69 69 67 67 Greatest Overweight (x) 3 | 1 3 3 1 1 . . . Average Overweight (x) . | . 2 2 . . . . . Largest Inventory Capacity 15 | 8 15 15 15 15 15 15 15 Average Capacity 14 | 6 14 15 15 15 15 15 15 Most Carried 15 | 6 15 15 15 15 15 14 14 Average Carried 13 | 5 12 14 13 14 13 13 12 Final Capacity 15 | 8 15 15 15 15 15 15 15 Final Carried 15 | 6 15 13 15 15 15 14 12 Class Distribution -------------------- 92% | Mutant 7% | Skirmisher Dominant Class ---------------- Mutant | -10/Materials Mutant | -10/Mines Mutant | -9/Materials Mutant | -9/Storage Mutant | -8/Materials Skirmisher | -7/Factory Mutant | -7/DSF Resources | -11 -10 -10 -9 -9 -8 -7 -7 ----------- Run | Jun Mat Min Mat Sto Mat Fac DSF Matter Collected 2174 | 246 369 46 274 447 567 119 106 Remotely . | . . . . . . . . Salvage Created 2103 | . 452 72 . 787 461 . 331 Parts 150 | . 29 9 . 67 31 . 14 Haulers Intercepted 1 | . . . . . 1 . . Recyclers Shooed 6 | . 1 . . 2 3 . . Parts Field Recycled . | . . . . . . . . Retrieved Matter . | . . . . . . . . Parts Self-Destructed . | . . . . . . . . Prevented . | . . . . . . . . Kills | -11 -10 -10 -9 -9 -8 -7 -7 ------- Run | Jun Mat Min Mat Sto Mat Fac DSF Combat Hostiles Destroyed 64 | . 11 5 . 22 17 . 9 Guns 41 | . 11 5 . 22 . . 3 Cannons 21 | . . . . . 17 . 4 AOE 2 | . . . . . . . 2 Classes Destroyed 13 | . 4 . . 4 1 . 4 Worker 1 | . . . . 1 . . . Tunneler 1 | . 1 . . . . . . Hauler 1 | . . . . . 1 . . Recycler 1 | . 1 . . . . . . Operator 1 | . . . . 1 . . . Watcher 3 | . . . . 1 2 . . Swarmer 19 | . 3 5 . 8 3 . . Grunt 29 | . 8 . . 9 10 . 2 Sentry 9 | . . . . 5 4 . . Specialist 2 | . . . . . . . 2 Heavy 1 | . . . . . . . 1 Thug 1 | . . . . . . . 1 Fireman 1 | . . . . . . . 1 Mutant 2 | . . . . . . . 2 Best Kill Streak 6 | . 5 3 . 4 6 . 4 Combat Bots Only 5 | . 5 3 . 4 5 . 4 Max Kills in Single Turn 2 | . 1 1 . 2 1 . 1 Gunslinging 1 | . . . . 1 . . . Exploded 1 | . . . . . . . 1 Melee . | . . . . . . . . Uniques/NPCs Destroyed . | . . . . . . . . Combat | -11 -10 -10 -9 -9 -8 -7 -7 -------- Run | Jun Mat Min Mat Sto Mat Fac DSF Damage Taken 4878 | . 397 526 . 808 980 68 2099 Core 512 | . 110 119 . 102 79 . 102 Absorbed by Shields . | . . . . . . . . Redirected to Shielding 57 | . 23 21 . 13 . . . Core Remaining (%) 66 | 100 . 8 . 74 85 . . Volleys Fired 242 | . 46 17 1 66 70 . 42 Largest 2 | . 2 2 2 2 2 . 2 Hottest 85 | . 85 70 73 73 78 . 78 Shots Fired 468 | . 83 27 2 132 140 . 84 Gun 288 | . 83 27 2 132 . . 44 Cannon 176 | . . . . . 140 . 36 Launcher 4 | . . . . . . . 4 Special . | . . . . . . . . Kinetic 422 | . 77 10 1 114 140 . 80 Thermal 42 | . 6 17 1 18 . . . Explosive 4 | . . . . . . . 4 Electromagnetic . | . . . . . . . . Robot Hit Streak 13 | . 8 5 . 13 10 . 10 Robot Miss Streak 7 | . 3 2 2 5 7 . 3 Penetration Max . | . . . . . . . . Secondary Targets 4 | . 1 1 . 1 . . 1 Max Gunslinging Chain 1 | . 1 1 . 1 . . 1 Shots Hit Robots 285 | . 50 17 . 82 82 . 54 Core Hits 121 | . 23 6 . 35 34 . 23 Critical Kills . | . . . . . . . . Critical Parts Destroyed 1 | . 1 . . . . . . Critical Strikes 11 | . 3 1 . 2 5 . . Burn 5 | . 2 1 . 2 . . . Destroy 1 | . 1 . . . . . . Blast 5 | . . . . . 5 . . Melee Attacks . | . . . . . . . . Impact . | . . . . . . . . Slashing . | . . . . . . . . Piercing . | . . . . . . . . Sneak Attacks . | . . . . . . . . Combat Hostiles . | . . . . . . . . Follow-up Attacks . | . . . . . . . . Damage Inflicted 5506 | . 688 206 . 1277 1878 20 1437 Guns 2728 | . 688 206 . 1248 . . 586 Cannons 2364 | . . . . . 1842 . 522 Explosions 329 | . . . . . . . 329 Melee . | . . . . . . . . Ramming 85 | . . . . 29 36 20 . Kinetic 4779 | . 656 30 . 1143 1842 . 1108 Thermal 313 | . 32 176 . 105 . . . Explosive 329 | . . . . . . . 329 Electromagnetic . | . . . . . . . . Impact . | . . . . . . . . Slashing . | . . . . . . . . Piercing . | . . . . . . . . Highest Corruption 2 | . 2 2 . 1 . . . Average Corruption 1 | . 2 2 . 1 . . . Corruption Purged . | . . . . . . . . Corruption Blocked . | . . . . . . . . Effects 10 | . 1 5 . 4 . . . Message Errors 2 | . . 1 . 1 . . . Matter Fused 5 | . . 2 . 3 . . . Heat Flow Errors 2 | . 1 1 . . . . . Energy Discharges 1 | . . 1 . . . . . Overload Shots . | . . . . . . . . Overflow Damage 13 | . . . . . 12 . 1 Projectiles 13 | . . . . . 12 . 1 Explosions . | . . . . . . . . Melee . | . . . . . . . . Knockbacks 30 | . . . . . 22 . 8 Impact . | . . . . . . . . Kinetic 29 | . . . . . 21 . 8 Secondary 1 | . . . . . 1 . . Self-Inflicted Damage 33 | . . . . . . . 33 Shots 2 | . . . . . . . 2 Rammed 9 | . . . . 3 5 1 . Targets Rammed 9 | . . . . 3 5 1 . Kicked . | . . . . . . . . Crushed . | . . . . . . . . Highest Temperature 272 | . 272 187 3 39 192 . 14 Average Temperature 60 | . 83 51 2 10 83 . 10 Received Heat Transfer 1389 | . 159 . . 318 477 . 435 Siege Activations . | . . . . . . . . Robots Corrupted . | . . . . . . . . Combat Hostiles . | . . . . . . . . Parts Fried . | . . . . . . . . Impact Corruptions 1 | . . . . . . 1 . Robots Melted . | . . . . . . . . Combat Hostiles . | . . . . . . . . Parts Melted 1 | . . . . 1 . . . Heat Transferred 1221 | . 222 555 . 444 . . . Parts Sabotaged . | . . . . . . . . Parts Stolen . | . . . . . . . . Parts Stripped . | . . . . . . . . Power Chain Reactions . | . . . . . . . . Missiles Intercepted . | . . . . . . . . Alert | -11 -10 -10 -9 -9 -8 -7 -7 ------- Run | Jun Mat Min Mat Sto Mat Fac DSF Peak Influence 433 | . 298 160 77 433 397 14 85 Initial 76 | . . . 62 . 76 14 13 Average 147 | . 101 33 51 233 240 14 49 Maximum Alert Level 2 | . 1 . . 2 1 . . Low Security (%) 68 | 100 95 100 100 39 34 100 100 Level 1 30 | . 4 . . 56 65 . . Level 2 . | . . . . 3 . . . Level 3 . | . . . . . . . . Level 4 . | . . . . . . . . Level 5 . | . . . . . . . . High Security . | . . . . . . . . Max Security . | . . . . . . . . Squads Dispatched 8 | . 1 . . 2 3 . 2 Investigation 1 | . . . . 1 . . . Extermination . | . . . . . . . . Reinforcement 7 | . 1 . . 1 3 . 2 Assault . | . . . . . . . . Garrison . | . . . . . . . . Intercept . | . . . . . . . . Searches Triggered . | . . . . . . . . Construction Impeded . | . . . . . . . . Haulers Reinforced . | . . . . . . . . Active Scanning Responses . | . . . . . . . . Cargo Convoy Interrupts . | . . . . . . . . Stealth | -11 -10 -10 -9 -9 -8 -7 -7 --------- Run | Jun Mat Min Mat Sto Mat Fac DSF Distress Signals 8 | . 1 . 2 4 1 . . Communications Jammed . | . . . . . . . . Distress Signals . | . . . . . . . . Times Spotted 106 | . 21 19 2 29 24 . 11 Peak Tracking Total 12 | . 6 12 1 5 5 . 6 Tactical Retreats 6 | . 2 2 . 1 1 . . Traps | -11 -10 -10 -9 -9 -8 -7 -7 ------- Run | Jun Mat Min Mat Sto Mat Fac DSF Traps Triggered 4 | . 1 . . 2 . 1 . Indirectly . | . . . . . . . . Trap Hack Attempts . | . . . . . . . . Triggered . | . . . . . . . . Disarmed . | . . . . . . . . Reprogrammed . | . . . . . . . . Reused . | . . . . . . . . Traps Extracted . | . . . . . . . . Installed . | . . . . . . . . Triggered . | . . . . . . . . Machines | -11 -10 -10 -9 -9 -8 -7 -7 ---------- Run | Jun Mat Min Mat Sto Mat Fac DSF Machines Disabled 6 | . . . . 3 3 . . Max in Single Turn 1 | . . . . 1 1 . . Garrison Access 1 | . . . . . 1 . . Machines Repaired . | . . . . . . . . Machines Sabotaged . | . . . . . . . . Overloaded Fab Kills . | . . . . . . . . Hacking | -11 -10 -10 -9 -9 -8 -7 -7 --------- Run | Jun Mat Min Mat Sto Mat Fac DSF Machines Accessed 21 | . 6 . 1 8 5 1 . Terminals 20 | . 6 . 1 8 4 1 . Fabricators . | . . . . . . . . Repair Stations . | . . . . . . . . Recycling Units . | . . . . . . . . Scanalyzers . | . . . . . . . . Garrison Access 1 | . . . . . 1 . . Total Hacks 58 | . 22 . 2 21 12 1 . Successful 22 | . 12 . . 5 4 1 . Failed 36 | . 10 . 2 16 8 . . Catastrophic 9 | . 1 . . 5 3 . . Database Lockouts . | . . . . . . . . Manual 40 | . 21 . 2 7 10 . . Terminals 57 | . 22 . 2 21 11 1 . Fabricators . | . . . . . . . . Repair Stations . | . . . . . . . . Recycling Units . | . . . . . . . . Scanalyzers . | . . . . . . . . Garrison Access 1 | . . . . . 1 . . Terminal Hacks 17 | . 8 . . 5 3 1 . Robot Analysis 4 | . 4 . . . . . . Prototype ID Bank 1 | . 1 . . . . . . Open Door 2 | . . . . 2 . . . Open DSF 1 | . . . . . . 1 . Branch Access Points 1 | . 1 . . . . . . Unreport Threat 5 | . 2 . . 1 2 . . Locate Traps 3 | . . . . 2 1 . . Fabricator Hacks . | . . . . . . . . Repair Station Hacks . | . . . . . . . . Recycling Unit Hacks . | . . . . . . . . Scanalyzer . | . . . . . . . . Garrison Access Hacks 1 | . . . . . 1 . . Seal Access 1 | . . . . . 1 . . Unauthorized Hacks 4 | . 4 . . . . . . Terminals 4 | . 4 . . . . . . Botnet 4 | . 4 . . . . . . Fabricators . | . . . . . . . . Repair Stations . | . . . . . . . . Recycling Units . | . . . . . . . . Scanalyzers . | . . . . . . . . Garrison Access . | . . . . . . . . Data Cores Recovered . | . . . . . . . . Used . | . . . . . . . . Hacking Detections 20 | . 6 . 1 9 4 . . Full Trace Events 3 | . . . . 2 1 . . Feedback Events . | . . . . . . . . Feedback Blocked . | . . . . . . . . Robot Schematics Acquired . | . . . . . . . . Robots Built . | . . . . . . . . Authchips . | . . . . . . . . Time . | . . . . . . . . Total Robot Build Rating . | . . . . . . . . Part Schematics Acquired . | . . . . . . . . Parts Built . | . . . . . . . . Authchips . | . . . . . . . . Time . | . . . . . . . . Total Part Build Rating . | . . . . . . . . Parts Repaired . | . . . . . . . . Time . | . . . . . . . . Parts Recycled . | . . . . . . . . Recycled Matter . | . . . . . . . . Retrieved Matter . | . . . . . . . . Retrieved Components . | . . . . . . . . Parts Scanalyzed . | . . . . . . . . Part Schematics Acquired . | . . . . . . . . Parts Damaged . | . . . . . . . . Bothacking | -11 -10 -10 -9 -9 -8 -7 -7 ------------ Run | Jun Mat Min Mat Sto Mat Fac DSF Used RIF Installer . | . . . . . . . . Robots Hacked . | . . . . . . . . Non-combat . | . . . . . . . . Combat . | . . . . . . . . Robot Hacks Applied . | . . . . . . . . Relay Couplers Released . | . . . . . . . . Fabnet Peak Effective % . | . . . . . . . . Robots Rewired . | . . . . . . . . Allies Hacked . | . . . . . . . . Hacks Repelled . | . . . . . . . . Allies | -11 -10 -10 -9 -9 -8 -7 -7 -------- Run | Jun Mat Min Mat Sto Mat Fac DSF Total Allies . | . . . . . . . . Largest Group . | . . . . . . . . Highest-Rated Group . | . . . . . . . . Highest-Rated Ally . | . . . . . . . . Total Orders . | . . . . . . . . Ally Attacks . | . . . . . . . . Total Damage . | . . . . . . . . Kills . | . . . . . . . . Allies Corrupted . | . . . . . . . . Allies Melted . | . . . . . . . . Intel | -11 -10 -10 -9 -9 -8 -7 -7 ------- Run | Jun Mat Min Mat Sto Mat Fac DSF Robot Analysis Total 4 | . 4 . . . . . . Derelict Logs Recovered . | . . . . . . . . Drone Launches . | . . . . . . . . Drone Recoveries . | . . . . . . . . Exploration | -11 -10 -10 -9 -9 -8 -7 -7 ------------- Run | Jun Mat Min Mat Sto Mat Fac DSF Turns Passed 4054 | 61 809 285 481 958 1008 231 221 Spaces Moved 2237 | 58 517 199 294 491 473 152 53 Core 12 | 12 . . . . . . . Treads 1035 | . 28 . . 329 473 152 53 Legs 456 | . . . 294 162 . . . Wheels 734 | 46 489 199 . . . . . Hover . | . . . . . . . . Flight . | . . . . . . . . Fastest Speed 50 | 50 95 110 120 120 150 150 145 Average Speed 140 | 80 121 118 154 146 158 150 147 Slowest Speed 240 | 95 160 125 190 240 160 150 150 Overloaded Moves . | . . . . . . . . Propulsion Burnouts . | . . . . . . . . Robots Hopped . | . . . . . . . . Cave-ins Triggered . | . . . . . . . . Exploration Rate (%) 48 | 4 84 66 28 91 40 5 66 Regions Visited 7 Branch Regions 2 Pre-discovered Areas 1 | . . 1 . . . . . Known Exits Taken 5 | . 1 . 1 1 1 1 . Unknown Exits Taken 2 | 1 . 1 . . . . . Scrap Searched 1 | . . 1 . . . . . Spaces Dug . | . . . . . . . . Terrain Destroyed 27 | . . . . . 3 . 24 Melee . | . . . . . . . . Projectile 3 | . . . . . 3 . . AOE 24 | . . . . . . . 24 Terrain Rammed . | . . . . . . . . Walls Destroyed . | . . . . . . . . Machines Disabled . | . . . . . . . . Actions | -11 -10 -10 -9 -9 -8 -7 -7 --------- Run | Jun Mat Min Mat Sto Mat Fac DSF Total 2687 | 69 612 222 323 598 593 155 115 Wait 49 | . 21 . . 7 20 . 1 Move 2230 | 57 516 198 293 490 472 151 53 Hop . | . . . . . . . . Pick Up 48 | 6 9 2 10 5 9 1 6 Fast Attach 23 | 6 2 1 . 10 2 . 2 Attach 23 | . 1 4 4 . 4 2 8 Detach 3 | . 1 . 1 . 1 . . Swap 18 | . 10 . 4 1 2 . 1 Drop 42 | . 6 . 10 16 8 . 2 Fire 242 | . 46 17 1 66 70 . 42 Melee . | . . . . . . . . Ram . | . . . . . . . . Kick . | . . . . . . . . Crush 9 | . . . . 3 5 1 . Escape Stasis . | . . . . . . . . Rewire . | . . . . . . . . Trap . | . . . . . . . . Miscellaneous . | . . . . . . . . Route ------- -11/Junkyard -10/Materials (discovered 3 exits: *Mat x2 / *Min) -10/Mines -9/Materials (discovered 2 exits: [*Min] / *Sto) -9/Storage -8/Materials -7/Factory -7/DSF History --------- Turn | Location | Event 8 | -11/Junkyard | Discovered new exit (range 15) 62 | -11/Junkyard | Entered Materials 318 | -10/Materials | Build established: Mutant 321 | -10/Materials | Discovered new exit (range 13) 581 | -10/Materials | Identified exit to Mines 583 | -10/Materials | Discovered new exit (range 7) 871 | -10/Materials | Entered Mines 872 | -10/Mines | Learned location of Storage (-9) 985 | -10/Mines | Assembled infested the area 990 | -10/Mines | Assisted by a Guerilla fighting off Assembled 1008 | -10/Mines | Core integrity fell below 50% 1106 | -10/Mines | Lost 3 parts (1p1n1w) 1107 | -10/Mines | Core integrity fell below 20% 1151 | -10/Mines | Discovered new exit (range 4) 1156 | -10/Mines | Entered Materials 1156 | -9/Materials | Evolved 2 slots: Propulsion x1, Utility x1 1163 | -9/Materials | Discovered new exit (range 7) 1170 | -9/Materials | Identified exit to Storage 1240 | -9/Materials | Discovered new exit (range 8) 1334 | -9/Materials | Met 8R-AWN 1637 | -9/Materials | Entered Storage 2519 | -9/Storage | Discovered new exit (range 11) 2594 | -9/Storage | Identified exit to Materials 2595 | -9/Storage | Entered Materials 2595 | -8/Materials | Evolved 2 slots: Utility x2 3517 | -8/Materials | Discovered new exit (range 4) 3520 | -8/Materials | Identified exit to Factory 3603 | -8/Materials | Entered Factory 3603 | -7/Factory | Evolved 2 slots: Utility x2 3834 | -7/Factory | Identified exit to DSF 3834 | -7/Factory | Entered DSF 3868 | -7/DSF | Additional patrols routed to DSF 3910 | -7/DSF | Build established: Skirmisher 3950 | -7/DSF | Wild Derelicts raided the area 3961 | -7/DSF | Lost 5 parts (2n2u1w) 4055 | -7/DSF | Self-destructed Last Messages --------------- 04025_ Penetrated by HV Slug. 04025_ A-02 Transporter destroyed. 04029_ Penetrated by HV Slug. 04029_ Critical hit (Destroy). 04029_ Cld. Ion Engine destroyed. 04033_ Penetrated by HV Slug. 04034_ 1W-5J2(M) destroyed. 04035_ HV Slug penetrates Wall. 04037_ Acquired 10 matter. 04039_ HV Slug penetrates Wall. 04042_ Acquired 5 matter. 04044_ HV Slug penetrates Wall. 04046_ Critical hit (Destroy). 04046_ Adv. Treads destroyed. 04048_ Acquired 14 matter. 04048_ Critical hit (Destroy). 04048_ Adv. Treads destroyed. 04050_ Penetrated by HV Slug. 04050_ HV Slug penetrates Wall. 04054_ Penetrated by HV Slug. Map ----- +----------------------------------------------------+ | | | ?????????????????????????????????????????? | | ?????????????????????????????????????????? | | ?????????????????????????????????????????? | | ?????????????????????????????????????????? | | ?????????????????????????????????????????? | | ?????????????????????????????????????????? | | ?????????????????????????????????????????? | | ?????????????????????????????????????????? | | ?????????????????????????????????????????? | | ??????????????????????? ??#????????????? | | ?????????????? ???????? ??????????????? | | ????????????????# ? ### ##?????#???????? | | ??????????????? ??????# ##??#??????????? | | ???????##? ??#??#???? !!?#???????????? | | ???????#! ??????#?##?? !??#??#????????? | | ????????! ???###??# ! #????????????? | | ??????### #??????#?### ######?#???????? | | ??????##! !!#?#??###!! !!####?????????? | | ???????#! ! ########?! !!##?###???#???? | | ???????#! ##?? ! !!?#?##????????? | | ??????### ###### ###########????? | | ???#??#]] #!!!### ###!!!# #????? | | ??????#]] !!##ah a##!!!# ## ? | | ??????# % [ =%%% % %% ?? | | ??????# * =@ ? | | ??????# h=* % | | ??????#== # ===*! ##% a##!!!#[[[## ? | | ??????#? ?##=== !!!### %*##? ?!# ## ? | | ??????###?## # ######%% ##########?# ## | | ????????#?##### #?###!!%[ !!#####?## # | | ??????###?######?####!! ] !!##?# ??? ? | | ??????##?##?#?#?##?##! %!!#?# ###? ? | | ??????#####???####?####%%%*"### ##### ## | | ???????##??#######?##/ % ####??##?! !# | | ??????###?######?##?#// #?#??##? ! !# | | ????????##?######?#?#// ########## #? | | ?????????############## "##!!!#!!### ## | | ?????????#?##?#??##?### ###!!!#!!## "" | | ??????????########?## % % "" | | ?????????#?#?#?#?#### "" | | ??????????##?#?#?#?## === # # ##""""" | | ???????????########## === #########""""" | | ????????????###???#####"#"###?#?#?#?##"### | | ??????????????######### #######?##???#"#?? | | ??????????????##########?##?#??###??##""?# | | ????????????###??#???#######??###???####?? | | ??????????????##???###??##??##?##???#??#?? | | ???????????????????#####??###########????? | | ????????????????#?##?#?#?###?#??##?#?#???? | +----------------------------------------------------+ Best States ------------- Heat Dissipation 45 Energy Generation 14 Energy Capacity 280 Matter Stores 300 Matter Capacity 300 Sight Range 16 Robot Scan Range 14 Terrain Scan Range 16 Terrain Scan Density 110 Armor Coverage 825 Core Shielding 20 Evasion (%) 55 Recoil Reduction 3 Authchip Count 1 Item Schematics ----------------- None Robot Schematics ------------------ None Fabricated ------------ Nothing Alien Tech Used ----------------- None Achievements -------------- None Challenges ------------ None Game ------ Seed ArchitectGaussAxe Manual? 0 Play Time 00:40:02 Cumulative 73.0 hours Start 2023.06.07 @ 21:40:57 End 2023.06.07 @ 22:17:55 Sessions 1 Manual Loads 0 Difficulty Rogue Special Mode None Game No. 64 Rogue 64 Adventurer 0 Explorer 0 Win Type - Total 0 Types 0/0/0/0/0/0/0/0/0 Lore% 34 Gallery% 43 Achievement% 33 Wizard Run 0 Options --------- ASCII 0 Keyboard 0 Movement Numpad Keybinds 0 Fullscreen 1 Font 18/SmallcapsGlow Map View 76x50 Tactical HUD 1 Map Filters NONE Filters NONE Steam 1 RUN: 9150a7bb-6ea4-4c33-9fe4-f62c5d2bc4a8